Cogmind - Beta 12 @@@ ROGUE MODE // 2023.06.03 @ 00:48:59 Player: kaj Result: Destroyed by as-47887 with Assembled Heavy Rifle Performance ------------- Evolutions (0) 0 Regions Visited (2) 400 Robots Destroyed (13) 65 Value Destroyed (391) 391 Prototype IDs (0) 0 Alien Tech Used (0) 0 Bonus (0) 0 TOTAL SCORE: 856 Bonus ------- None Cogmind --------- Core Integrity 0/250 Matter 232/300 Energy 48/250 System Corruption 0% Temperature Cool (0) Movement Rolling (145) Ox3 Location -10/Mines Parts ------- > --- POWER (1) -------- Ion Engine > --- PROPULSION (2) --- Compact Wheel > --- UTILITY (2) ------ High-capacity Storage Unit Terrain Scanner > --- WEAPON (2) ------- Rocket Launcher > --- INVENTORY (20) --- Light Nuclear Core Light Treads Light Treads Aluminum Leg Heat Sink Large Matter Pod (150) Sensor Array Medium Laser Light Assault Rifle Light Assault Rifle Peak State ------------ > --- POWER ------------ Light Ion Engine > --- PROPULSION ------- Aluminum Leg Aluminum Leg > --- UTILITY ---------- High-capacity Storage Unit Terrain Scanner > --- WEAPON ----------- Light Assault Rifle Rocket Launcher > --- INVENTORY -------- Ion Engine Light Ion Engine Light Nuclear Core Light Treads Light Treads Aluminum Leg Wheel Compact Wheel Heat Sink Large Matter Pod Sensor Array Medium Laser Light Assault Rifle Light Assault Rifle Light Assault Rifle [Rating: 9] Favorites ----------- Power Light Ion Engine Engine Light Ion Engine Propulsion Aluminum Leg Leg Aluminum Leg Wheel Wheel Utility High-capacity Storage Unit Device Terrain Scanner Storage High-capacity Storage Unit Weapon Light Assault Rifle Energy Gun Medium Laser Ballistic Gun Light Assault Rifle Launcher Rocket Launcher Build | -11 -10 -10 ------- Run | Jun Mat Min Slots Evolved . | . . . Power . | . . . Propulsion . | . . . Utility . | . . . Weapon . | . . . Parts Attached 15 | . 4 11 Power 4 | . 1 3 Engine 4 | . 1 3 Core . | . . . Reactor . | . . . Propulsion 5 | . . 5 Treads . | . . . Leg 3 | . . 3 Wheel 2 | . . 2 Hover . | . . . Flight . | . . . Utility 2 | . 2 . Device 1 | . 1 . Storage 1 | . 1 . Processor . | . . . Hackware . | . . . Protection . | . . . Artifact . | . . . Weapon 4 | . 1 3 Energy Gun . | . . . Energy Cannon . | . . . Ballistic Gun 2 | . 1 1 Ballistic Cannon . | . . . Launcher 2 | . . 2 Special Weapon . | . . . Impact Weapon . | . . . Slashing Weapon . | . . . Piercing Weapon . | . . . Special Melee Weapon . | . . . Unidentified Prototypes . | . . . Parts Lost 9 | . 1 8 Power 3 | . 1 2 Propulsion 4 | . . 4 Utility . | . . . Weapon 2 | . . 2 Highest Loss Streak 7 | . 1 7 To Critical Strikes . | . . . Average Slot Usage (%) 97 | . 94 100 Engine 13 | . 13 14 Leg 27 | . 28 27 Device 11 | . 9 14 Storage 14 | . 14 14 Energy Gun 5 | . 11 . Ballistic Gun 22 | . 16 27 Naked Turns . | . . . Heaviest Build 49 | 11 47 49 Greatest Support 20 | 20 20 20 Greatest Overweight (x) 4 | . 2 4 Average Overweight (x) 1 | . 1 2 Largest Inventory Capacity 20 | . 20 20 Average Capacity 19 | . 19 20 Most Carried 15 | . 14 15 Average Carried 12 | . 10 13 Final Capacity 20 | 8 20 20 Final Carried 13 | 6 13 10 Class Distribution -------------------- 100% | Mutant Dominant Class ---------------- Mutant | -10/Materials Mutant | -10/Mines Resources | -11 -10 -10 ----------- Run | Jun Mat Min Matter Collected 478 | 200 212 66 Remotely . | . . . Salvage Created 470 | . 318 152 Parts 21 | . 13 8 Haulers Intercepted . | . . . Recyclers Shooed . | . . . Parts Field Recycled . | . . . Retrieved Matter . | . . . Parts Self-Destructed . | . . . Prevented . | . . . Kills | -11 -10 -10 ------- Run | Jun Mat Min Combat Hostiles Destroyed 18 | . 7 11 Guns 12 | . 7 5 AOE 6 | . . 6 Classes Destroyed 4 | . 2 2 Watcher 1 | . 1 . Swarmer 3 | . . 3 Grunt 9 | . 7 2 Assembled 6 | . . 6 Best Kill Streak 6 | . 3 6 Combat Bots Only 6 | . 3 6 Max Kills in Single Turn 4 | . 1 4 Gunslinging . | . . . Exploded 4 | . . 4 Melee . | . . . Uniques/NPCs Destroyed . | . . . Combat | -11 -10 -10 -------- Run | Jun Mat Min Damage Taken 1191 | . 325 866 Core 260 | . 72 188 Absorbed by Shields . | . . . Core Remaining (%) 100 | 100 . . Volleys Fired 44 | . 26 18 Largest 2 | . 2 2 Hottest 70 | . 70 40 Shots Fired 85 | . 52 33 Gun 82 | . 52 30 Cannon . | . . . Launcher 3 | . . 3 Special . | . . . Kinetic 57 | . 27 30 Thermal 25 | . 25 . Explosive 3 | . . 3 Electromagnetic . | . . . Robot Hit Streak 10 | . 10 9 Robot Miss Streak 2 | . 2 2 Penetration Max . | . . . Secondary Targets 1 | . 1 . Max Gunslinging Chain 1 | . 1 . Shots Hit Robots 60 | . 38 22 Core Hits 42 | . 18 24 Critical Kills 1 | . 1 . Critical Parts Destroyed . | . . . Critical Strikes 5 | . 5 . Burn 4 | . 4 . Destroy 1 | . 1 . Melee Attacks . | . . . Impact . | . . . Slashing . | . . . Piercing . | . . . Sneak Attacks . | . . . Combat Hostiles . | . . . Follow-up Attacks . | . . . Damage Inflicted 922 | . 372 550 Guns 538 | . 372 166 Cannons . | . . . Explosions 384 | . . 384 Melee . | . . . Ramming . | . . . Kinetic 340 | . 174 166 Thermal 198 | . 198 . Explosive 384 | . . 384 Electromagnetic . | . . . Impact . | . . . Slashing . | . . . Piercing . | . . . Highest Corruption . | . . . Average Corruption . | . . . Corruption Purged . | . . . Corruption Blocked . | . . . Overload Shots . | . . . Overflow Damage 50 | . . 50 Projectiles . | . . . Explosions 50 | . . 50 Melee . | . . . Knockbacks . | . . . Impact . | . . . Kinetic . | . . . Secondary . | . . . Self-Inflicted Damage 71 | . . 71 Shots 2 | . . 2 Rammed . | . . . Targets Rammed . | . . . Kicked . | . . . Crushed . | . . . Highest Temperature 194 | . 194 37 Average Temperature 58 | . 64 20 Received Heat Transfer 370 | . 228 142 Siege Activations . | . . . Robots Corrupted . | . . . Combat Hostiles . | . . . Parts Fried . | . . . Impact Corruptions . | . . . Robots Melted . | . . . Combat Hostiles . | . . . Parts Melted 1 | . 1 . Heat Transferred 888 | . 888 . Parts Sabotaged . | . . . Parts Stolen . | . . . Parts Stripped . | . . . Power Chain Reactions . | . . . Missiles Intercepted . | . . . Alert | -11 -10 -10 ------- Run | Jun Mat Min Peak Influence 217 | . 217 131 Initial 6 | . . 6 Average 77 | . 73 80 Maximum Alert Level 1 | . 1 . Low Security (%) 99 | . 98 100 Level 1 . | . 1 . Level 2 . | . . . Level 3 . | . . . Level 4 . | . . . Level 5 . | . . . High Security . | . . . Max Security . | . . . Squads Dispatched 1 | . 1 . Investigation 1 | . 1 . Extermination . | . . . Reinforcement . | . . . Assault . | . . . Garrison . | . . . Intercept . | . . . Searches Triggered . | . . . Construction Impeded . | . . . Haulers Reinforced . | . . . Active Scanning Responses . | . . . Cargo Convoy Interrupts . | . . . Stealth | -11 -10 -10 --------- Run | Jun Mat Min Distress Signals 1 | . 1 . Communications Jammed . | . . . Distress Signals . | . . . Times Spotted 26 | . 12 14 Peak Tracking Total 9 | . 4 9 Tactical Retreats . | . . . Traps | -11 -10 -10 ------- Run | Jun Mat Min Traps Triggered 1 | . 1 . Indirectly . | . . . Trap Hack Attempts . | . . . Triggered . | . . . Disarmed . | . . . Reprogrammed . | . . . Reused . | . . . Traps Extracted . | . . . Installed . | . . . Triggered . | . . . Machines | -11 -10 -10 ---------- Run | Jun Mat Min Machines Disabled . | . . . Max in Single Turn . | . . . Machines Repaired . | . . . Machines Sabotaged . | . . . Overloaded Fab Kills . | . . . Hacking | -11 -10 -10 --------- Run | Jun Mat Min Machines Accessed 2 | . 2 . Terminals 2 | . 2 . Fabricators . | . . . Repair Stations . | . . . Recycling Units . | . . . Scanalyzers . | . . . Garrison Access . | . . . Total Hacks 3 | . 3 . Successful 2 | . 2 . Failed 1 | . 1 . Catastrophic . | . . . Database Lockouts . | . . . Manual 2 | . 2 . Terminals 3 | . 3 . Fabricators . | . . . Repair Stations . | . . . Recycling Units . | . . . Scanalyzers . | . . . Garrison Access . | . . . Terminal Hacks 2 | . 2 . Branch Access Points 1 | . 1 . Zone Layout 1 | . 1 . Fabricator Hacks . | . . . Repair Station Hacks . | . . . Recycling Unit Hacks . | . . . Scanalyzer . | . . . Garrison Access Hacks . | . . . Unauthorized Hacks . | . . . Terminals . | . . . Fabricators . | . . . Repair Stations . | . . . Recycling Units . | . . . Scanalyzers . | . . . Garrison Access . | . . . Data Cores Recovered . | . . . Used . | . . . Hacking Detections 2 | . 2 . Full Trace Events . | . . . Feedback Events . | . . . Feedback Blocked . | . . . Robot Schematics Acquired . | . . . Robots Built . | . . . Authchips . | . . . Time . | . . . Total Robot Build Rating . | . . . Part Schematics Acquired . | . . . Parts Built . | . . . Authchips . | . . . Time . | . . . Total Part Build Rating . | . . . Parts Repaired . | . . . Time . | . . . Parts Recycled . | . . . Recycled Matter . | . . . Retrieved Matter . | . . . Retrieved Components . | . . . Parts Scanalyzed . | . . . Part Schematics Acquired . | . . . Parts Damaged . | . . . Bothacking | -11 -10 -10 ------------ Run | Jun Mat Min Used RIF Installer . | . . . Robots Hacked . | . . . Non-combat . | . . . Combat . | . . . Robot Hacks Applied . | . . . Relay Couplers Released . | . . . Fabnet Peak Effective % . | . . . Robots Rewired . | . . . Allies Hacked . | . . . Hacks Repelled . | . . . Allies | -11 -10 -10 -------- Run | Jun Mat Min Total Allies . | . . . Largest Group . | . . . Highest-Rated Group . | . . . Highest-Rated Ally . | . . . Total Orders . | . . . Ally Attacks . | . . . Total Damage . | . . . Kills . | . . . Allies Corrupted . | . . . Allies Melted . | . . . Intel | -11 -10 -10 ------- Run | Jun Mat Min Robot Analysis Total . | . . . Derelict Logs Recovered . | . . . Drone Launches . | . . . Drone Recoveries . | . . . Exploration | -11 -10 -10 ------------- Run | Jun Mat Min Turns Passed 1078 | . 490 588 Spaces Moved 360 | 1 156 203 Core . | . . . Treads . | . . . Legs 354 | 1 156 197 Wheels 6 | . . 6 Hover . | . . . Flight . | . . . Fastest Speed 120 | 120 120 130 Average Speed 250 | 120 243 256 Slowest Speed 260 | 120 260 260 Overloaded Moves . | . . . Propulsion Burnouts . | . . . Robots Hopped . | . . . Cave-ins Triggered . | . . . Exploration Rate (%) 24 | 1 31 41 Regions Visited 2 Branch Regions 1 Pre-discovered Areas . | . . . Known Exits Taken 1 | . 1 . Unknown Exits Taken 1 | 1 . . Scrap Searched . | . . . Spaces Dug . | . . . Terrain Destroyed 25 | . . 25 Melee . | . . . Projectile . | . . . AOE 25 | . . 25 Terrain Rammed . | . . . Walls Destroyed . | . . . Machines Disabled . | . . . Actions | -11 -10 -10 --------- Run | Jun Mat Min Total 461 | . 219 242 Wait 33 | . 25 8 Move 358 | . 155 203 Hop . | . . . Pick Up 9 | . 8 1 Fast Attach 2 | . 2 . Attach 7 | . 1 6 Detach . | . . . Swap 6 | . 1 5 Drop 2 | . 1 1 Fire 44 | . 26 18 Melee . | . . . Ram . | . . . Kick . | . . . Crush . | . . . Escape Stasis . | . . . Rewire . | . . . Trap . | . . . Miscellaneous . | . . . Route ------- -11/Junkyard -10/Materials (discovered 2 exits: *Min x2) -10/Mines History --------- Turn | Location | Event 1 | -11/Junkyard | Discovered new exit (range 0) 1 | -11/Junkyard | Entered Materials 260 | -10/Materials | Identified exit to Mines 318 | -10/Materials | Build established: Mutant 491 | -10/Materials | Entered Mines 508 | -10/Mines | Core integrity fell below 50% 1029 | -10/Mines | Received a Rocket Launcher from a helpful Derelict 1048 | -10/Mines | Assembled infested the area 1060 | -10/Mines | Core integrity fell below 20% 1079 | -10/Mines | Destroyed by as-47887 with Assembled Heavy Rifle Last Messages --------------- 01029_ 5F-GOM(g): "Would you like a rocket launcher? I know I would if I were you, so I'm going to lend you mine." 01029_ 5F-GOM(g) slips back into the shadows. 01038_ Acquired Rocket Launcher. 01048_ ALERT: Infestation in the mines, dispatching Demolisher response squad. 01061_ Destroyed Asb. Hover Unit. 01061_ Destroyed Asb. Blade. 01061_ as-09755 destroyed. 01061_ as-20192 destroyed. 01062_ Aluminum Leg destroyed. 01062_ Lgt. Ion Engine destroyed. 01072_ Lgt. Assault Rifle destroyed. 01073_ Wheel destroyed. 01075_ as-99136 destroyed. 01075_ as-47500 destroyed. 01075_ as-66808 destroyed. 01075_ as-06563 destroyed. 01075_ Lgt. Assault Rifle destroyed. 01079_ Aluminum Leg destroyed. Map ----- +----------------------------------------------------+ | ?????????????????????????????????????????????????? | | ?????????????????????????????????????????????????? | | ?????????????????????????????????????????????????? | | ?????????????????????????????????????????????????? | | ?????????????????????????????????????????????????? | | ?????????????????????????????????????????????????? | | ?????????????????????????????????????????????????? | | ?????????????????????????????????????????????????? | | ?????????????????????????????????????????????????? | | ?????????????????????????????????????????????????? | | ?????????????????????????????????????????????????? | | ??????????? ????????????????????????????????????? | | ?????????? ???????? ? ????????????????????????? | | ??????????? ???????????????????????????????????? | | ??????????? #????????##?#??????????????????????? | | ???????????? #?????????????#?#?#???????????????? | | ???????????? ##??#???#????????????????????????? | | ????????##???# ?????????#?????#???????????????? | | ????????? ?## ???????????????????????????????? | | ??????????# # ###???????????#???#????????????? | | ??????????? # #????????#?????????????????? | | ????????????# #?????????#??#????????#????? | | ?????????????# a #???#??????????????? #????? | | ????????????## %a #????#???????????? ##???? | | ?????????#?## % a% #########????#???# ##??? | | ???????????# # % @ #?????#?# #??? | | ???????????????# ###### ######?# #??? | | ???????????????#### ##??#?# ## #???? | | ??????????????????# ##??????# #???? | | ??????#??????????# #?##?##?##### ###?? | | ????????#?#??????# ??????????## | | ?????????????????# #????????## ## | | ????????????#??##### ##???????## ##????### | | ??????????????#????####???????## ##????????? | | ????????????#????????????#??#?## #?#???????? | | ?????#??????##??#??????????????## ##????##??? | | ???????????????#??##?##???#?#???## ##???????? | | ??######????#????????????#??#????# ##???????? | | ?# #############??????#??????# ####????? | | ?# #?#??????##???## ##???? | | ??# ############ #?#????????????## #???? | | ???###??????#????# ##?????????#????###### #???? | | ????????????#???## ##################### ##???? | | ???????#????????# %##????? | | ???????????#????# ####################% ####### | | ??#???????#????## ####????????###?#?# # | | ??#????????????# #??#?#?????#?###### """ """ # | | ????????#???#??# ################ """ """ # | | ??????#????????# ## """ """ # | | ???#???##?#?#??### ################### # | +----------------------------------------------------+ Best States ------------- Heat Dissipation 25 Energy Generation 10 Energy Capacity 125 Matter Stores 300 Matter Capacity 300 Sight Range 16 Terrain Scan Range 14 Terrain Scan Density 10 Evasion (%) 50 Item Schematics ----------------- None Robot Schematics ------------------ None Fabricated ------------ Nothing Alien Tech Used ----------------- None Achievements -------------- None Challenges ------------ None Game ------ Seed GravityBombPlating Manual? 0 Play Time 00:09:35 Cumulative 142.8 hours Start 2023.05.18 @ 22:17:00 End 2023.06.03 @ 00:48:59 Sessions 2 Manual Loads 0 Difficulty Rogue Special Mode None Game No. 213 Rogue 213 Adventurer 0 Explorer 0 Win Type - Total 0 Types 0/0/0/0/0/0/0/0/0 Lore% 49 Gallery% 57 Achievement% 43 Wizard Run 0 Options --------- ASCII 0 Keyboard 0 Movement Mouse Keybinds 1 Fullscreen 0 Font 14/Smallcaps Map View 76x50 Tactical HUD 1 Map Filters SATURATION(75) Filters LOW_CONTRAST(23,23,23) Steam 1 RUN: 837ed541-d5de-4de1-96e9-acff68b5933c